bitfinex/quotes_SOLUSD_20241028
["timestamp","ask_amount","ask_price","bid_price","bid_amount"]
[1730140365233,17.64566655,175.12,175.07,19.9917]
[1730140365437,37.64566655,175.08,175.05,0.85715348]
[1730140365649,17.64566655,175.08,175.04,5.7128]
[1730140365870,87.64566655,175.09,175.04,19.9952]
[1730140366760,87.64566655,175.06,175.02,5.7133]
[1730140366945,87.64566655,175.06,175.01,14.8678262]
[1730140367135,15.5008,175.1,175.01,14.8678262]
[1730140367136,93.35866655,175.04,175.01,0.5831262]
[1730140367534,70.0,175.02,175.01,0.5831262]
[1730140368640,107.64566655,175.02,175.01,0.5831262]
[1730140369471,113.35926655,175.02,175.01,0.5831262]
[1730140369858,137.13615055,175.02,175.01,0.5831262]
[1730140370455,113.35926655,175.02,175.01,0.5831262]
[1730140379854,90.0,175.02,175.01,0.5831262]
[1730140380064,70.0,175.04,175.01,0.5831262]
[1730140380850,70.0,175.06,175.02,17.64566655]
[1730140381174,70.0,175.06,175.03,23.35886655]
[1730140381353,70.0,175.06,175.03,5.7132]
[1730140382055,87.64566655,175.04,175.01,0.5831262]
[1730140382271,87.64566655,175.02,175.01,0.5831262]
[1730140383165,113.35926655,175.02,175.01,0.5831262]
[1730140385648,137.13615055,175.02,175.01,0.5831262]
[1730140385867,137.23615055,175.02,175.01,0.5831262]
[1730140386169,119.590484,175.02,175.01,0.5831262]
[1730140386372,137.23615055,175.02,175.01,0.5831262]
[1730140387157,137.33615055,175.02,175.01,0.5831262]
[1730140387970,70.0,174.95,174.89,60.53646655]
[1730140388275,20.0,174.94,174.89,60.53646655]
[1730140388452,17.64566655,174.93,174.89,22.8785]
[1730140388770,87.64566655,174.93,174.89,22.8785]
[1730140389962,20.0,174.9,174.89,16.602]
[1730140390257,17.64566655,174.92,174.89,16.602]
[1730140390776,17.64566655,174.92,174.87,5.7184]
[1730140391777,37.64566655,174.92,174.87,5.7184]
[1730140392267,37.64566655,174.92,174.87,37.66036655]
[1730140392455,87.64566655,174.93,174.88,17.64566655]
[1730140392973,17.64566655,174.92,174.87,37.66036655]
[1730140393354,87.64566655,174.93,174.88,17.64566655]
[1730140394056,87.64566655,174.93,174.88,23.36366655]
[1730140394357,87.64566655,174.93,174.88,5.718]
[1730140394855,70.0,174.95,174.9,17.64566655]
[1730140395169,87.64566655,174.97,174.91,17.64566655]
[1730140395355,70.0,174.99,174.94,17.64566655]
[1730140396069,70.0,174.99,174.94,23.36156655]
[1730140396372,25.25,174.95,174.94,23.36156655]
[1730140396565,25.25,174.95,174.93,31.93646655]
[1730140397070,17.64566655,174.98,174.93,31.93646655]
[1730140397276,17.64566655,174.98,174.93,14.2908]
[1730140398259,17.64566655,174.96,174.9,38.65396655]
[1730140399156,17.64566655,174.96,174.91,17.64566655]
[1730140399356,87.64566655,174.97,174.91,23.36286655]
[1730140399966,87.64566655,174.97,174.92,17.64566655]
[1730140400155,87.64566655,174.96,174.9,32.93646655]
[1730140400557,70.0,174.94,174.9,32.93646655]
[1730140401677,87.64566655,174.94,174.9,15.2908]
[1730140401885,20.0,174.95,174.9,38.65386655]
[1730140402057,20.0,174.95,174.9,52.94766655]
[1730140403871,70.0,174.94,174.9,29.5846]
[1730140405660,20.0,174.95,174.9,52.94776655]
[1730140405866,20.0,174.95,174.91,17.64566655]
[1730140406061,5.7153,174.97,174.92,17.64566655]
[1730140406255,75.7149,174.98,174.93,17.64566655]
[1730140407388,75.7149,174.98,174.93,23.36196655]
[1730140407561,17.64566655,174.97,174.93,5.7163]
[1730140408370,87.64566655,174.96,174.91,5.7169]
[1730140408554,17.64566655,174.95,174.9,29.5846]
[1730140408756,17.64566655,174.93,174.9,15.2908]
[1730140409058,17.64566655,174.92,174.88,6.57586557]
[1730140409659,23.36226655,174.93,174.88,6.57586557]
[1730140409857,23.36226655,174.93,174.88,20.87136557]
[1730140411757,17.64566655,174.9,174.86,16.1188]
[1730140412465,17.64566655,174.9,174.86,21.8376]
[1730140412972,87.64566655,174.9,174.86,16.1188]
[1730140413184,17.64566655,174.88,174.84,5.7192]
[1730140413682,23.36366655,174.89,174.84,5.7192]
[1730140413864,23.36366655,174.89,174.84,23.36486655]
[1730140414881,23.36366655,174.89,174.84,5.7192]
[1730140415473,87.64566655,174.87,174.83,0.5831262]
[1730140415671,112.89566655,174.87,174.83,0.5831262]
[1730140417170,17.64566655,174.86,174.83,0.5831262]
[1730140418090,87.64566655,174.84,174.83,0.5831262]
[1730140418583,107.64566655,174.84,174.83,0.5831262]
[1730140419486,93.36516655,174.84,174.83,0.5831262]
[1730140419969,113.36516655,174.84,174.83,0.5831262]
[1730140422965,17.64566655,174.85,174.83,0.5831262]
[1730140423387,87.64566655,174.86,174.83,0.5831262]
[1730140423795,70.0,174.86,174.83,0.5831262]
[1730140424369,20.0,174.86,174.83,0.5831262]
[1730140424673,90.0,174.86,174.83,0.5831262]
[1730140425188,17.64566655,174.85,174.83,0.5831262]
[1730140425974,23.36486655,174.85,174.83,0.5831262]
[1730140426194,87.64566655,174.84,174.83,0.5831262]
[1730140426698,70.0,174.84,174.83,0.5831262]
[1730140426994,87.64566655,174.84,174.83,0.5831262]
[1730140428278,113.36516655,174.84,174.83,0.5831262]
[1730140428477,93.36516655,174.84,174.83,0.5831262]
[1730140428667,113.36516655,174.84,174.83,0.5831262]
[1730140431890,137.24205055,174.84,174.83,0.5831262]
[1730140432597,137.14205055,174.84,174.83,0.5831262]
[1730140432889,137.24205055,174.84,174.83,0.5831262]
[1730140433094,137.14205055,174.84,174.83,0.5831262]
[1730140433475,113.36516655,174.84,174.83,0.5831262]
[1730140439794,17.64566655,174.85,174.83,0.5831262]
[1730140440107,87.64566655,174.86,174.83,0.5831262]
[1730140440469,93.36456655,174.86,174.83,0.5831262]
[1730140440799,17.64566655,174.84,174.83,0.5831262]
[1730140441676,107.64566655,174.84,174.83,0.5831262]
[1730140442689,113.36516655,174.84,174.83,0.5831262]
[1730140444302,107.64566655,174.84,174.83,0.5831262]
[1730140444477,70.0,174.84,174.83,0.5831262]
[1730140445577,17.64566655,174.87,174.83,0.5831262]
[1730140445797,17.64566655,174.87,174.83,6.3027262]
[1730140446399,17.64566655,174.87,174.83,0.5831262]
[1730140446697,17.64566655,174.86,174.83,0.5831262]
[1730140447778,20.0,174.86,174.83,0.5831262]
[1730140447979,20.0,174.86,174.83,6.3029262]
[1730140448482,23.36356655,174.89,174.83,38.24819275]
[1730140448683,17.64566655,174.86,174.83,14.8827262]
[1730140448914,0.99315014,174.94,174.86,39.602584]
[1730140449203,70.0,174.96,174.92,17.64566655]
[1730140449598,70.0,174.96,174.91,17.64566655]
[1730140449800,87.64566655,174.96,174.9,17.64566655]
[1730140450518,87.64566655,174.93,174.87,31.94196655]
[1730140450803,17.64566655,174.92,174.87,14.2963]
[1730140451004,17.64566655,174.9,174.87,14.2963]
[1730140451194,17.64566655,174.89,174.86,15.8257]
[1730140452510,93.36326655,174.9,174.86,15.8257]
[1730140452693,23.36286655,174.91,174.86,21.5444]
[1730140452895,70.0,174.92,174.87,17.64566655]
[1730140453092,87.64566655,174.92,174.87,17.64566655]
[1730140454093,93.36256655,174.92,174.87,17.64566655]
[1730140454602,17.64566655,174.91,174.86,53.48716655]
[1730140455115,93.36256655,174.92,174.86,53.48716655]
[1730140455404,17.64566655,174.91,174.86,53.48716655]
[1730140456702,5.7166,174.93,174.88,17.64566655]
[1730140456703,17.64566655,174.93,174.88,17.64566655]
[1730140456909,70.0,174.95,174.9,17.64566655]
[1730140457582,23.36126655,174.96,174.9,17.64566655]
[1730140457787,87.64566655,174.97,174.92,17.64566655]
[1730140458408,70.0,174.97,174.92,23.36236655]
[1730140458609,70.0,174.97,174.93,17.64566655]
[1730140458815,75.7152,174.97,174.92,37.65456655]
[1730140460202,17.64566655,174.96,174.91,6.3777]
[1730140460406,17.64566655,174.95,174.91,6.3777]
[1730140460707,17.64566655,174.94,174.9,5.7174]
[1730140462215,23.36196655,174.94,174.89,37.65806655]
[1730140462513,23.36196655,174.94,174.89,20.0124]
[1730140463412,17.64566655,174.94,174.89,20.0124]
[1730140463595,17.64566655,174.93,174.89,20.0124]
[1730140464100,87.64566655,174.95,174.89,37.65806655]
[1730140464299,93.36156655,174.95,174.89,37.65806655]
[1730140464891,75.7159,174.95,174.9,17.64566655]
[1730140465091,5.7159,174.95,174.91,17.64566655]
[1730140465290,87.64566655,174.97,174.92,17.64566655]
[1730140465588,93.36096655,174.97,174.92,17.64566655]
[1730140466605,70.0,174.97,174.93,17.64566655]
[1730140466807,70.0,175.0,174.95,17.64566655]
[1730140467125,23.35976655,175.01,174.95,17.64566655]
[1730140467817,70.0,175.0,174.95,17.64566655]
[1730140468018,70.0,175.0,174.95,23.36136655]
[1730140468716,93.36006655,175.0,174.95,23.36136655]
[1730140468893,93.36006655,175.0,174.95,5.7157]
[1730140470018,87.64566655,174.98,174.93,15.2582]
[1730140470320,17.64566655,174.97,174.93,15.2582]
[1730140470719,87.64566655,174.96,174.91,20.0099]
[1730140470902,87.64566655,174.96,174.91,37.65556655]
[1730140471516,70.0,174.96,174.91,37.65556655]
[1730140472027,5.7156,174.96,174.91,37.65556655]
[1730140472208,5.7156,174.96,174.92,17.64566655]
[1730140472410,70.0,174.98,174.94,17.64566655]
[1730140473607,5.7146,174.99,174.94,17.64566655]
[1730140474009,5.7146,174.99,174.89,15.2652]
[1730140474010,87.64566655,174.95,174.89,15.2652]
[1730140474209,17.64566655,174.92,174.89,15.2652]
[1730140475306,17.64566655,174.91,174.89,15.2652]
[1730140476100,17.64566655,174.91,174.88,14.2951]
[1730140476309,87.64566655,174.89,174.85,15.5814]
[1730140476507,17.64566655,174.87,174.85,15.5814]
[1730140476917,17.64566655,174.88,174.85,15.5814]
[1730140478115,87.64566655,174.89,174.85,15.5814]
[1730140478616,17.64566655,174.91,174.85,53.24376655]
[1730140478923,17.64566655,174.9,174.85,35.5981]
[1730140480123,17.64566655,174.88,174.85,14.2979]
[1730140480333,17.64566655,174.87,174.83,7.63529527]
[1730140480507,17.64566655,174.86,174.83,7.16109527]
[1730140481828,17.64566655,174.84,174.83,0.5831262]
[1730140484009,42.89566655,174.84,174.83,0.5831262]
[1730140485727,118.61516655,174.84,174.83,0.5831262]
[1730140486133,138.61516655,174.84,174.83,0.5831262]
[1730140486830,132.89566655,174.84,174.83,0.5831262]
[1730140487925,138.61516655,174.84,174.83,0.5831262]
[1730140489013,95.25,174.84,174.83,0.5831262]
[1730140489924,112.89566655,174.84,174.83,0.5831262]
[1730140490526,95.25,174.84,174.83,0.5831262]
[1730140490908,25.25,174.84,174.83,6.3029262]
[1730140491908,20.0,174.85,174.83,0.5831262]
[1730140492511,23.36456655,174.86,174.83,0.5831262]
[1730140492835,20.0,174.85,174.83,0.5831262]
[1730140493003,23.36456655,174.86,174.83,0.5831262]
[1730140494210,20.0,174.86,174.83,6.3028262]
[1730140494427,20.0,174.86,174.83,0.5831262]
[1730140495435,87.64566655,174.89,174.83,23.94859275]
[1730140495730,23.36356655,174.89,174.83,38.24819275]
[1730140497316,93.36356655,174.89,174.83,38.24819275]
[1730140498829,93.36356655,174.89,174.83,32.52839275]
[1730140499034,17.64566655,174.87,174.83,14.8827262]
[1730140500029,17.64566655,174.88,174.83,20.6025262]
[1730140500255,20.0,174.9,174.85,17.64566655]
[1730140500535,70.0,174.89,174.84,33.60006655]
[1730140500716,17.64566655,174.92,174.87,17.64566655]
[1730140500911,17.64566655,174.93,174.88,5.7182]
[1730140501115,25.25,174.89,174.88,17.64566655]
[1730140501623,93.36196655,174.94,174.88,17.64566655]
[1730140502431,93.36196655,174.94,174.88,23.36376655]
[1730140502632,17.64566655,174.93,174.88,23.36376655]
[1730140502933,17.64566655,174.94,174.89,17.64566655]
[1730140503113,20.0,174.94,174.89,17.64566655]
[1730140503446,70.0,174.96,174.88,20.0136]
[1730140503637,70.0,174.96,174.92,17.64566655]
[1730140503942,70.0,174.96,174.93,17.64566655]
[1730140504148,70.0,175.0,174.95,17.64566655]
[1730140504447,16.3592,175.04,174.97,17.64566655]
[1730140504448,17.64566655,175.03,174.97,17.64566655]
[1730140504746,70.99214021,175.04,175.0,17.64566655]
[1730140504927,87.64566655,175.04,174.99,17.64566655]
[1730140505443,87.64566655,175.04,174.98,17.64566655]
[1730140506244,87.64566655,175.04,174.99,5.7146]
[1730140507238,20.0,175.04,175.0,17.64566655]
[1730140507819,20.0,175.05,175.0,17.64566655]
[1730140508137,20.0,175.06,175.02,37.64326655]
[1730140508337,20.0,175.06,175.02,19.9976]
[1730140508524,17.64566655,175.03,174.99,14.2865]
[1730140508840,17.64566655,175.01,174.97,22.1454]
[1730140509043,17.64566655,175.0,174.97,5.7152]
[1730140510127,17.64566655,175.05,174.99,17.64566655]
[1730140510430,70.0,175.06,175.01,17.64566655]
[1730140510628,70.0,175.06,175.02,17.64566655]
[1730140510819,70.0,175.06,175.01,17.64566655]
[1730140511328,17.64566655,175.07,175.01,17.64566655]
[1730140511621,70.0,175.08,175.03,17.64566655]
[1730140512342,17.64566655,175.07,175.04,5.7129]
[1730140512532,17.64566655,175.05,174.99,20.0004]
[1730140512719,17.64566655,175.04,174.99,20.0004]
[1730140512926,17.64566655,175.05,175.0,17.64566655]
[1730140513224,87.64566655,175.06,175.0,17.64566655]
[1730140513424,17.64566655,175.03,174.99,20.0004]
[1730140513634,17.64566655,175.04,174.99,20.0004]
[1730140514150,17.64566655,175.03,174.99,20.0004]
[1730140514320,17.64566655,175.04,174.99,14.2858]
[1730140514520,17.64566655,175.03,174.99,14.2858]
[1730140514715,17.64566655,175.02,174.99,14.2858]
[1730140515231,37.64566655,175.06,175.0,17.64566655]
[1730140515420,20.0,175.06,175.01,17.64566655]
[1730140515622,17.64566655,175.08,175.03,17.64566655]
[1730140516230,17.64566655,175.08,175.02,17.64566655]
[1730140516525,17.64566655,175.08,175.03,31.92886655]
[1730140517519,87.64566655,175.09,175.04,17.64566655]
[1730140517722,87.64566655,175.11,175.05,17.64566655]
[1730140517930,17.64566655,175.12,175.06,17.64566655]
[1730140518246,90.0,175.11,175.07,17.64566655]
[1730140518423,70.0,175.11,175.08,5.7116]
[1730140518623,17.64566655,175.12,175.08,5.7116]
[1730140519826,87.64566655,175.11,175.06,31.92566655]
[1730140520032,87.64566655,175.11,175.07,5.7119]
[1730140520237,17.64566655,175.1,175.07,5.7119]
[1730140520643,17.64566655,175.1,175.06,14.28]
[1730140521522,17.64566655,175.08,175.04,22.2513]
[1730140521721,87.64566655,175.05,175.01,0.85731963]
[1730140521946,17.64566655,175.03,175.01,0.85731963]
[1730140522327,17.64566655,175.04,175.01,0.85731963]
[1730140522941,17.64566655,175.04,175.01,6.57111963]
[1730140524249,17.64566655,175.03,174.99,20.0004]
[1730140524826,17.64566655,175.04,174.99,20.0004]
[1730140525451,17.64566655,175.03,174.99,20.0004]
[1730140525629,17.64566655,175.06,175.01,17.64566655]
[1730140525829,17.64566655,175.08,175.03,17.64566655]
[1730140526256,17.64566655,175.08,175.0,19.9999]
[1730140526257,70.0,175.09,175.04,17.64566655]
[1730140526550,87.64566655,175.09,175.04,17.64566655]
[1730140527357,87.64566655,175.09,175.05,5.7126]
[1730140528150,17.64566655,175.06,175.01,19.9987]
[1730140528343,17.64566655,175.02,174.96,28.5771]
[1730140528545,17.64566655,175.05,174.99,17.64566655]
[1730140529331,17.64566655,175.07,175.02,17.64566655]
[1730140529741,17.64566655,175.08,175.03,17.64566655]
[1730140530059,17.64566655,175.12,175.06,17.64566655]
[1730140530348,70.0,175.11,175.06,17.64566655]
[1730140530560,17.64566655,175.1,175.05,17.64566655]
[1730140530939,87.64566655,175.11,175.05,17.64566655]
[1730140531135,17.64566655,175.11,175.06,19.9931]
[1730140531759,87.64566655,175.11,175.06,19.9931]
[1730140532338,87.64566655,175.08,175.04,5.7129]
[1730140532537,17.64566655,175.07,175.03,36.0681]
[1730140532758,17.64566655,175.06,175.03,19.9964]
[1730140533060,17.64566655,175.05,175.03,19.9964]
[1730140533431,17.64566655,175.04,175.0,15.14284687]
[1730140533652,17.64566655,175.01,174.97,14.288]
[1730140533865,17.64566655,175.0,174.97,14.288]
[1730140534452,28.25183676,175.0,174.97,14.288]
[1730140535345,70.0,175.02,174.94,20.0065]
[1730140535346,28.25183676,174.98,174.94,20.0065]
[1730140535539,28.25183676,174.95,174.94,14.2903]
[1730140535739,28.25183676,174.95,174.89,44.51343676]
[1730140535959,28.25183676,174.94,174.9,20.0106]
[1730140536455,28.25183676,174.95,174.9,20.0106]
[1730140536756,28.25183676,174.96,174.9,48.26243676]
[1730140536945,98.25183676,174.97,174.91,28.25183676]
[1730140537352,28.25183676,174.96,174.9,48.26243676]
[1730140537657,28.25183676,174.94,174.9,20.0106]
[1730140537958,98.25183676,174.95,174.9,20.0106]
[1730140538335,28.25183676,174.95,174.9,20.0106]
[1730140539250,28.25183676,174.95,174.9,48.26243676]
[1730140539451,28.25183676,174.95,174.9,20.0106]
[1730140540146,28.25183676,174.96,174.91,28.25183676]
[1730140540346,98.25183676,174.97,174.91,28.25183676]
[1730140541139,28.25183676,174.97,174.91,28.25183676]
[1730140541339,28.25183676,174.97,174.92,28.25183676]
[1730140541564,28.25183676,174.99,174.93,28.25183676]
[1730140541751,28.25183676,174.98,174.92,28.25183676]
[1730140541958,28.25183676,174.98,174.93,28.25183676]
[1730140542438,28.25183676,174.98,174.94,20.0068]
[1730140543068,70.0,175.0,174.94,20.0068]
[1730140543069,83.68852686,175.12,175.04,22.5221]
[1730140543362,70.0,175.14,175.07,28.25183676]
[1730140543865,98.25183676,175.16,175.05,23.876884]
[1730140544163,70.0,175.16,175.11,28.25183676]
[1730140544570,70.0,175.16,175.12,5.7103]
[1730140544742,28.25183676,175.15,175.12,5.7103]
[1730140545450,28.25183676,175.15,175.11,14.2763]
[1730140545656,28.25183676,175.14,175.11,14.2763]
[1730140546041,98.25183676,175.14,175.09,5.7113]
[1730140546351,28.25183676,175.13,175.09,5.7113]
[1730140547045,28.25183676,175.13,175.08,5.7116]
[1730140548151,98.25183676,175.14,175.08,33.96343676]
[1730140549664,28.25183676,175.15,175.09,28.25183676]
[1730140549963,70.0,175.16,175.12,28.25183676]
[1730140550163,70.0,175.16,175.11,28.25183676]
[1730140551771,103.96093676,175.16,175.1,33.96263676]
[1730140552087,103.96093676,175.16,175.11,28.25183676]
[1730140552755,75.7091,175.16,175.11,28.25183676]
[1730140554370,70.0,175.14,175.1,28.25183676]
[1730140554563,98.25183676,175.14,175.09,28.25183676]
[1730140554776,70.0,175.12,175.07,28.25183676]
[1730140555954,70.0,175.12,175.07,33.96363676]
[1730140556275,70.0,175.12,175.09,28.25183676]
[1730140559070,70.0,175.12,175.08,33.96343676]
[1730140561479,70.0,175.12,175.09,28.25183676]
[1730140564559,70.0,175.1,175.06,17.63167475]
[1730140564758,70.0,175.1,175.05,37.62587475]
[1730140565083,87.63167475,175.1,175.05,19.9942]
[1730140565654,87.63167475,175.08,175.04,0.85715704]
[1730140565858,87.63167475,175.08,175.03,23.34467475]
[1730140566072,70.0,175.08,175.03,37.62787475]
[1730140566776,75.7116,175.08,175.03,37.62787475]
[1730140566992,70.0,175.08,175.04,17.63167475]
[1730140567773,70.0,175.08,175.03,37.62787475]
[1730140569262,70.0,175.08,175.03,17.63167475]
[1730140570459,70.0,175.1,175.05,17.63167475]
[1730140570767,87.63167475,175.12,175.06,17.63167475]
[1730140571571,87.63167475,175.14,175.09,17.63167475]
[1730140571768,70.0,175.14,175.1,17.63167475]
[1730140572100,70.0,175.16,175.11,17.63167475]
[1730140572382,70.0,175.16,175.12,17.63167475]
[1730140573980,70.0,175.16,175.11,17.63167475]
[1730140574484,70.0,175.16,175.08,16.3498]
[1730140574485,70.0,175.16,175.12,17.63167475]
[1730140574686,70.0,175.19,175.15,17.63167475]
[1730140575066,70.0,175.19,175.16,17.63167475]
[1730140575395,70.0,175.19,175.09,43.876884]
[1730140575396,70.0,175.19,175.15,17.63167475]
[1730140577371,70.0,175.19,175.14,17.63167475]
[1730140577579,17.63167475,175.18,175.13,17.63167475]
[1730140578065,87.63167475,175.19,175.14,17.63167475]
[1730140578387,70.0,175.19,175.14,17.63167475]
[1730140579166,87.63167475,175.19,175.14,17.63167475]
[1730140579369,87.63167475,175.19,175.13,17.63167475]
[1730140580886,70.0,175.19,175.14,17.63167475]
[1730140582796,70.0,175.21,175.16,17.63167475]
[1730140583578,87.63167475,175.21,175.15,17.63167475]
[1730140584797,17.63167475,175.2,175.14,17.63167475]
[1730140585092,21.8961,175.24,175.1,17.63167475]
[1730140585093,87.63167475,175.16,175.1,17.63167475]
[1730140586978,17.63167475,175.16,175.1,17.63167475]
[1730140587179,17.63167475,175.16,175.11,17.63167475]
[1730140587572,17.63167475,175.19,175.14,17.63167475]
[1730140587774,87.63167475,175.2,175.14,17.63167475]
[1730140588197,70.0,175.22,175.15,17.63167475]
[1730140588380,17.63167475,175.21,175.15,17.63167475]
[1730140590500,17.63167475,175.21,175.16,17.63167475]
[1730140590682,17.63167475,175.2,175.15,17.63167475]
[1730140590885,17.63167475,175.18,175.12,17.63167475]
[1730140591396,17.63167475,175.2,175.15,17.63167475]
[1730140591581,70.0,175.22,175.17,17.63167475]
[1730140591777,70.0,175.22,175.12,23.776884]
[1730140592008,17.63167475,175.18,175.13,17.63167475]
[1730140592299,17.63167475,175.2,175.14,17.63167475]
[1730140592501,17.63167475,175.2,175.09,21.05691549]
[1730140592502,17.63167475,175.21,175.15,17.63167475]
[1730140592710,17.63167475,175.21,175.16,17.63167475]
[1730140593579,17.63167475,175.2,175.15,17.63167475]
[1730140593785,17.63167475,175.2,175.14,17.63167475]
[1730140593986,17.63167475,175.19,175.14,17.63167475]
[1730140594296,17.63167475,175.19,175.13,17.63167475]
[1730140594620,17.63167475,175.19,175.14,17.63167475]
[1730140596089,17.63167475,175.2,175.14,17.63167475]
[1730140596812,17.63167475,175.18,175.12,17.63167475]
[1730140596985,17.63167475,175.17,175.12,17.63167475]
[1730140598386,17.63167475,175.19,175.13,17.63167475]
[1730140598995,87.63167475,175.2,175.14,17.63167475]
[1730140599709,87.63167475,175.2,175.1,23.876884]
[1730140599710,70.0,175.23,175.17,17.63167475]
[1730140599893,17.63167475,175.21,175.16,17.63167475]
[1730140600409,70.0,175.23,175.16,17.63167475]
[1730140600410,17.63167475,175.22,175.16,17.63167475]
[1730140601406,17.63167475,175.21,175.16,17.63167475]
[1730140601605,17.63167475,175.22,175.16,17.63167475]
[1730140602132,87.63167475,175.23,175.17,17.63167475]
[1730140602418,17.63167475,175.23,175.17,17.63167475]
[1730140603106,87.63167475,175.23,175.17,17.63167475]
[1730140603409,17.63167475,175.21,175.15,41.40855875]
[1730140603599,17.63167475,175.22,175.16,17.63167475]
[1730140603989,17.63167475,175.21,175.15,41.40855875]
[1730140604411,17.63167475,175.21,175.16,14.2726]
[1730140604625,17.63167475,175.17,175.13,5.7099]
[1730140604798,17.63167475,175.17,175.13,19.9846]
[1730140605000,17.63167475,175.18,175.13,19.9846]
[1730140605225,17.63167475,175.19,175.13,37.61627475]
[1730140605517,17.63167475,175.17,175.13,19.9846]
[1730140605696,17.63167475,175.15,175.1,36.8215]
[1730140605891,17.63167475,175.15,175.07,37.62337475]
[1730140605892,17.63167475,175.13,175.07,37.62337475]
[1730140606117,17.63167475,175.1,175.01,28.80379662]
[1730140606320,17.63167475,175.09,175.04,17.63167475]
[1730140606494,17.63167475,175.1,175.04,17.63167475]
[1730140607214,17.63167475,175.09,175.04,19.9953]
[1730140607394,17.63167475,175.09,175.04,37.62697475]
[1730140607601,17.63167475,175.09,175.04,19.9953]
[1730140607796,23.34267475,175.1,175.04,37.62697475]
[1730140608121,17.63167475,175.1,175.04,37.62697475]
[1730140608310,17.63167475,175.1,175.05,17.63167475]
[1730140609122,17.63167475,175.1,175.06,5.7123]
[1730140609700,23.34237475,175.11,175.06,5.7123]
[1730140609901,17.63167475,175.1,175.06,5.7123]
[1730140610112,17.63167475,175.09,175.04,31.91407475]
[1730140610299,17.63167475,175.08,175.04,14.2824]
[1730140610499,17.63167475,175.07,175.04,19.9953]
[1730140610906,17.63167475,175.08,175.04,19.9953]
[1730140611115,17.63167475,175.06,175.04,19.9953]
[1730140611312,17.63167475,175.07,175.04,19.9953]
[1730140611516,17.63167475,175.08,175.04,19.9953]
[1730140612017,17.63167475,175.1,175.04,37.62697475]
[1730140612318,17.63167475,175.11,175.06,17.63167475]
[1730140612891,17.63167475,175.12,175.07,17.63167475]
[1730140614199,17.63167475,175.12,175.06,17.63167475]
[1730140615015,17.63167475,175.12,175.07,17.63167475]
[1730140615618,17.63167475,175.11,175.06,17.63167475]
[1730140616623,17.63167475,175.11,175.07,19.992]
[1730140616829,23.34197475,175.12,175.07,19.992]
[1730140617201,17.63167475,175.12,175.07,19.992]
[1730140617401,87.63167475,175.13,175.07,37.62367475]
[1730140617706,17.63167475,175.12,175.07,19.992]
[1730140618618,17.63167475,175.12,175.07,37.62367475]
[1730140619616,17.63167475,175.12,175.07,14.28]
[1730140620325,17.63167475,175.11,175.07,14.28]
[1730140620620,17.63167475,175.09,175.05,5.7126]
[1730140621121,17.63167475,175.1,175.05,37.62587475]
[1730140621623,17.63167475,175.11,175.06,17.63167475]
[1730140622014,87.63167475,175.13,175.07,17.63167475]
[1730140622313,17.63167475,175.13,175.08,17.63167475]
[1730140623320,17.63167475,175.13,175.09,5.7113]
[1730140623630,17.63167475,175.14,175.09,23.34297475]
[1730140623815,23.34137475,175.14,175.09,19.9896]
[1730140624655,70.0,175.15,175.09,19.9896]
[1730140624804,0.1,175.23,175.12,17.63167475]
[1730140624805,17.63167475,175.18,175.12,17.63167475]
[1730140625310,17.63167475,175.14,175.09,19.9896]
[1730140625507,17.63167475,175.12,175.09,14.2783]
[1730140625710,17.63167475,175.11,175.07,5.7118]
[1730140625925,17.63167475,175.1,175.06,6.56927895]
[1730140626223,17.63167475,175.1,175.06,20.85007895]
[1730140626426,17.63167475,175.12,175.06,38.4817537]
[1730140626629,17.63167475,175.14,175.08,17.63167475]
[1730140626830,17.63167475,175.13,175.07,17.63167475]
[1730140627142,17.63167475,175.12,175.06,38.4817537]
[1730140627703,17.63167475,175.1,175.06,20.85007895]
[1730140628433,17.63167475,175.11,175.06,38.4817537]
[1730140630516,23.34207475,175.12,175.06,38.4817537]
[1730140632239,70.0,175.13,175.07,41.40855875]
[1730140632240,17.63167475,175.13,175.07,41.40855875]
[1730140632441,17.63167475,175.14,175.09,17.63167475]
[1730140633033,17.63167475,175.15,175.1,17.63167475]
[1730140633336,17.63167475,175.15,175.09,17.63167475]
[1730140633633,17.63167475,175.15,175.07,23.776884]
[1730140633634,17.63167475,175.15,175.1,17.63167475]
[1730140634136,17.63167475,175.15,175.11,19.9873]
[1730140635743,17.63167475,175.13,175.08,37.62237475]
[1730140635926,17.63167475,175.13,175.08,19.9907]
[1730140636239,17.63167475,175.11,175.08,19.9907]
[1730140637043,17.63167475,175.12,175.08,19.9907]
[1730140637243,17.63167475,175.12,175.08,14.2791]